bitfinex/quotes_SOLUSD_20251124
["timestamp","ask_amount","ask_price","bid_price","bid_amount"]
[1764014330210,3.9,137.26,137.25,12.12610151]
[1764014331316,3.9,137.26,137.25,7.28597449]
[1764014331485,3.9,137.26,137.25,12.12610151]
[1764014334304,3.24,137.26,137.25,12.12610151]
[1764014334512,0.71,137.3,137.25,12.12610151]
[1764014334819,3.24,137.3,137.29,3.09450992]
[1764014335002,3.95,137.3,137.29,3.09450992]
[1764014335712,3.95,137.3,137.26,16.308864]
[1764014335912,0.71,137.33,137.29,3.09450992]
[1764014336094,0.71,137.33,137.31,3.09450992]
[1764014336291,0.71,137.33,137.32,3.09450992]
[1764014336613,3.24,137.34,137.32,3.09450992]
[1764014336916,3.95,137.34,137.33,3.09450992]
[1764014337102,3.24,137.34,137.33,3.09450992]
[1764014337414,7.28069436,137.35,137.33,3.09450992]
[1764014337612,3.95,137.34,137.28,34.30528291]
[1764014337816,3.95,137.34,137.33,3.09450992]
[1764014338022,3.24,137.34,137.33,3.09450992]
[1764014339000,19.50337392,137.39,137.33,10.376211]
[1764014339001,0.1,137.39,137.33,10.376211]
[1764014339201,0.1,137.39,137.38,3.09450992]
[1764014339517,3.34,137.39,137.38,3.09450992]
[1764014340102,4.05,137.39,137.38,3.09450992]
[1764014340715,3.34,137.39,137.38,3.09450992]
[1764014340920,0.1,137.39,137.38,26.68245384]
[1764014341214,0.1,137.39,137.38,35.49239876]
[1764014341515,0.2,137.41,137.39,8.80994492]
[1764014341719,0.2,137.41,137.4,15.4725496]
[1764014342113,0.2,137.41,137.4,3.09450992]
[1764014342308,0.2,137.41,137.4,15.4725496]
[1764014342490,0.2,137.41,137.4,24.28249452]
[1764014343090,0.2,137.42,137.4,31.56051489]
[1764014343309,0.2,137.42,137.41,15.4725496]
[1764014344718,0.1,137.44,137.42,8.80994492]
[1764014345023,0.1,137.44,137.43,3.09450992]
[1764014345218,0.1,137.44,137.43,10.37094155]
[1764014346323,0.1,137.44,137.43,3.09450992]
[1764014346503,0.1,137.44,137.42,7.27676236]
[1764014346709,0.81,137.44,137.41,16.308864]
[1764014346914,0.81,137.44,137.43,3.09450992]
[1764014347341,0.1,137.44,137.43,3.09450992]
[1764014347525,0.1,137.44,137.43,26.67980555]
[1764014349005,0.05850189,137.44,137.43,26.67980555]
[1764014350122,0.05850189,137.44,137.43,35.48975047]
[1764014350426,0.05850189,137.44,137.43,26.67980555]
[1764014355909,0.05850189,137.44,137.43,35.48975047]
[1764014356113,0.1,137.45,137.43,26.67980555]
[1764014356340,0.1,137.45,137.44,3.09450992]
[1764014358226,0.1,137.45,137.44,10.37041213]
[1764014360318,0.81,137.45,137.44,3.09450992]
[1764014360627,0.81,137.45,137.44,10.37041213]
[1764014361928,0.81,137.45,137.44,3.09450992]
[1764014362955,0.81,137.45,137.44,10.37041213]
[1764014363523,0.81,137.45,137.44,3.09450992]
[1764014363728,11.17988278,137.45,137.35,2.91598323]
[1764014364060,14.39988278,137.45,137.41,3.09450992]
[1764014364272,0.67,137.44,137.41,3.09450992]
[1764014364937,7.27643163,137.43,137.41,3.09450992]
[1764014365638,0.67,137.42,137.41,3.09450992]
[1764014366048,0.67,137.42,137.39,23.58707638]
[1764014366222,0.67,137.42,137.41,3.09450992]
[1764014369726,0.58289339,137.42,137.41,3.09450992]
[1764014370125,7.85994341,137.42,137.41,3.09450992]
[1764014370431,26.05234626,137.42,137.36,23.58882603]
[1764014370640,3.22,137.41,137.38,3.09450992]
[1764014370944,7.27662142,137.43,137.4,3.09450992]
[1764014371148,10.49662142,137.43,137.35,25.20880892]
[1764014371329,10.49662142,137.43,137.41,3.09450992]
[1764014371738,3.22,137.43,137.42,3.09450992]
[1764014372037,10.49604204,137.44,137.42,3.09450992]
[1764014372227,10.49604204,137.44,137.43,3.09450992]
[1764014372423,7.37558219,137.45,137.4,7.27787856]
[1764014372630,3.22,137.44,137.4,7.27787856]
[1764014372830,3.89,137.44,137.4,7.27787856]
[1764014373022,0.67,137.43,137.4,7.27787856]
[1764014373447,0.67,137.43,137.38,23.58752349]
[1764014373656,0.67,137.43,137.34,15.59803968]
[1764014373828,0.67,137.43,137.38,3.09450992]
[1764014373829,7.27696114,137.42,137.38,3.09450992]
[1764014374237,0.67,137.41,137.38,3.09450992]
[1764014374664,0.67,137.41,137.39,3.09450992]
[1764014374868,7.94779889,137.41,137.39,3.09450992]
[1764014375234,0.67,137.4,137.39,3.09450992]
[1764014379146,3.89,137.4,137.39,3.09450992]
[1764014379853,11.16802037,137.4,137.39,3.09450992]
[1764014380359,3.89,137.4,137.39,3.09450992]
[1764014380869,11.16810029,137.4,137.35,7.28046137]
[1764014381034,0.67,137.39,137.38,3.09450992]
[1764014383354,0.67,137.43,137.38,28.66118296]
[1764014383554,3.89,137.44,137.42,3.09450992]
[1764014383963,0.67,137.43,137.42,3.09450992]
[1764014385550,0.77,137.45,137.42,10.37147106]
[1764014385875,0.1,137.45,137.44,3.09450992]
[1764014388880,0.76,137.45,137.44,3.09450992]
[1764014389184,0.76,137.45,137.44,10.37041213]
[1764014389363,0.76,137.45,137.44,3.09450992]
[1764014390365,0.1,137.45,137.44,3.09450992]
[1764014391081,0.76,137.45,137.44,10.37041213]
[1764014393376,0.76,137.45,137.44,7.27590221]
[1764014393681,0.76,137.45,137.44,10.37041213]
[1764014396555,0.76,137.45,137.44,12.1001402]
[1764014397592,0.76,137.45,137.42,25.46936399]
[1764014397782,0.76,137.45,137.44,4.82423799]
[1764014399680,0.76,137.45,137.44,12.1001402]
[1764014400394,0.1,137.45,137.44,12.1901402]
[1764014400563,0.1,137.45,137.44,12.1001402]
[1764014400885,0.1,137.45,137.44,12.1901402]
[1764014401076,0.1,137.45,137.44,21.14224669]
[1764014401394,0.1,137.47,137.44,21.14224669]
[1764014401395,0.1,137.47,137.46,16.45102557]
[1764014401692,0.1,137.59,137.51,0.14216157]
[1764014401863,0.68,137.57,137.53,16.308864]
[1764014402997,0.68,137.57,137.55,4.82423799]
[1764014403291,0.68,137.57,137.54,4.82423799]
[1764014403589,0.68,137.57,137.5,23.58159127]
[1764014403590,5.50423799,137.57,137.5,23.58159127]
[1764014403797,7.2695551,137.56,137.52,4.82423799]
[1764014403987,7.9495551,137.56,137.54,4.82423799]
[1764014404193,0.1,137.58,137.55,4.82423799]
[1764014404387,0.1,137.58,137.52,9.04210649]
[1764014404388,3.22,137.56,137.52,9.04210649]
[1764014404589,0.1,137.58,137.52,9.04210649]
[1764014404590,0.1,137.58,137.56,8.95210649]
[1764014404899,1.99999999,137.73,137.56,8.95210649]
[1764014404900,0.68,137.63,137.59,16.308864]
[1764014405472,0.68,137.63,137.62,4.82423799]
[1764014405895,0.68,137.63,137.62,7.26638569]
[1764014406203,0.68,137.63,137.61,7.26674184]
[1764014406394,0.68,137.63,137.62,4.82423799]
[1764014407306,7.26393307,137.67,137.62,4.82423799]
[1764014407307,0.68,137.67,137.62,9.73847598]
[1764014407606,0.68,137.67,137.66,4.82423799]
[1764014408300,0.68,137.69,137.66,12.08851228]
[1764014408477,0.68,137.69,137.67,4.82423799]
[1764014409807,7.26321905,137.68,137.64,4.82423799]
[1764014410298,7.26321905,137.68,137.61,4.82423799]
[1764014410299,5.50423799,137.67,137.61,4.82423799]
[1764014410499,3.22,137.66,137.61,4.82423799]
[1764014410799,0.68,137.65,137.61,4.82423799]
[1764014410978,0.68,137.65,137.63,4.82423799]
[1764014411192,0.68,137.65,137.64,4.82423799]
[1764014411386,0.68,137.66,137.64,4.82423799]
[1764014411602,0.68,137.66,137.65,4.82423799]
[1764014411983,0.68,137.66,137.64,7.26520165]
[1764014412185,0.68,137.66,137.63,4.82423799]
[1764014412385,0.68,137.66,137.64,4.82423799]
[1764014412687,0.68,137.66,137.61,16.308864]
[1764014412688,7.94437743,137.66,137.61,16.308864]
[1764014412888,7.94437743,137.66,137.62,4.82423799]
[1764014413186,0.68,137.65,137.61,4.82423799]
[1764014413373,3.22,137.64,137.61,4.82423799]
[1764014413779,0.68,137.63,137.62,4.82423799]
[1764014414304,0.68,137.63,137.62,21.13310199]
[1764014414519,3.22,137.65,137.6,7.26724769]
[1764014414686,0.68,137.63,137.61,4.82423799]
[1764014415007,0.68,137.63,137.62,4.82423799]
[1764014415206,3.9,137.65,137.62,4.82423799]
[1764014415403,0.68,137.64,137.63,4.82423799]
[1764014416188,3.9,137.67,137.63,12.09009572]
[1764014416392,0.68,137.66,137.65,4.82423799]
[1764014417004,0.68,137.66,137.64,4.82423799]
[1764014417585,0.68,137.66,137.65,4.82423799]
[1764014417885,7.94437998,137.66,137.63,4.82423799]
[1764014418387,0.68,137.65,137.63,4.82423799]
[1764014419387,7.94493782,137.65,137.62,4.82423799]
[1764014419794,0.68,137.64,137.62,4.82423799]
[1764014420214,0.68,137.64,137.6,7.26725039]
[1764014420396,0.68,137.64,137.62,4.82423799]
[1764014420585,0.68,137.64,137.59,23.57663592]
[1764014420787,0.68,137.64,137.62,4.82423799]
[1764014421101,7.94543779,137.64,137.62,4.82423799]
[1764014421491,0.68,137.63,137.62,4.82423799]
[1764014423299,0.69,137.65,137.62,12.09055574]
[1764014423500,7.26447627,137.66,137.64,4.82423799]
[1764014423808,7.26447627,137.66,137.63,4.82423799]
[1764014424013,0.69,137.65,137.63,4.82423799]
[1764014424391,0.69,137.65,137.64,4.82423799]
[1764014425907,0.69,137.65,137.6,25.43539681]
[1764014426124,7.95481627,137.65,137.63,4.82423799]
[1764014426328,0.69,137.65,137.64,4.82423799]
[1764014426492,3.22,137.67,137.64,4.82423799]
[1764014427004,0.69,137.66,137.63,4.82423799]
[1764014427422,7.26480203,137.65,137.61,4.82423799]
[1764014427707,7.26480203,137.65,137.58,4.82423799]
[1764014427708,4.82423799,137.63,137.58,4.82423799]
[1764014427899,3.22,137.62,137.58,4.82423799]
[1764014428217,3.91,137.62,137.58,4.82423799]
[1764014428511,0.69,137.61,137.58,12.77480093]
[1764014428988,7.26744186,137.6,137.58,12.77480093]
[1764014429195,7.95713811,137.61,137.58,12.77480093]
[1764014429416,0.69,137.6,137.56,7.26947627]
[1764014429586,0.69,137.6,137.58,12.77480093]
[1764014429790,3.22,137.59,137.58,12.77480093]
[1764014430301,3.91,137.59,137.58,12.77480093]
[1764014431596,0.69,137.64,137.58,20.13329925]
[1764014431900,0.69,137.63,137.61,12.77480093]
[1764014432300,0.69,137.63,137.58,7.26849832]
[1764014432505,0.69,137.63,137.61,12.77480093]
[1764014433194,0.69,137.63,137.62,12.77480093]
[1764014433394,3.22,137.64,137.62,12.77480093]
[1764014433595,3.91,137.64,137.63,12.77480093]
[1764014433899,0.69,137.63,137.62,12.77480093]
[1764014434809,0.69,137.63,137.61,12.77480093]
[1764014435734,3.22,137.62,137.58,32.61946881]
[1764014435900,3.22,137.62,137.59,18.16992513]
[1764014436827,3.22,137.62,137.61,12.77480093]
[1764014436999,3.22,137.62,137.6,12.77480093]
[1764014437199,10.48638763,137.62,137.59,12.77480093]
[1764014437520,0.69,137.61,137.59,12.77480093]
[1764014437724,0.69,137.61,137.6,12.77480093]
[1764014438024,0.69,137.61,137.59,12.77480093]
[1764014438203,0.69,137.61,137.58,12.77480093]
[1764014439209,20.04224279,137.6,137.5,12.77480093]
[1764014439422,20.04224279,137.6,137.55,12.77480093]
[1764014439726,0.69,137.59,137.57,12.77480093]
[1764014440024,0.69,137.6,137.58,12.77480093]
[1764014440206,0.69,137.6,137.59,12.77480093]
[1764014440410,0.69,137.6,137.58,12.77480093]
[1764014440712,0.69,137.6,137.59,12.77480093]
[1764014440909,0.69,137.6,137.54,9.04210649]
[1764014440910,0.69,137.6,137.58,12.77480093]
[1764014441227,0.69,137.6,137.58,20.04322126]
[1764014441228,3.22,137.59,137.58,20.04322126]
[1764014442026,0.69,137.6,137.58,20.04322126]
[1764014442205,0.69,137.6,137.59,12.77480093]
[1764014442534,3.91,137.62,137.59,12.77480093]
[1764014442726,0.69,137.61,137.6,12.77480093]
[1764014443041,0.69,137.61,137.59,12.77480093]
[1764014443238,0.69,137.61,137.59,20.04265151]
[1764014443406,0.69,137.61,137.6,12.77480093]
[1764014443602,3.22,137.62,137.6,12.77480093]
[1764014443802,3.91,137.62,137.61,12.77480093]
[1764014445212,3.91,137.62,137.6,12.77480093]
[1764014445415,0.69,137.61,137.6,12.77480093]
[1764014446214,0.69,137.61,137.6,20.04224279]
[1764014447229,3.22,137.62,137.6,20.04224279]
[1764014447443,3.92,137.62,137.61,12.77480093]
[1764014447927,0.7,137.62,137.61,12.77480093]
[1764014448127,3.92,137.62,137.61,12.77480093]
[1764014450507,3.92,137.62,137.61,4.81327659]
[1764014451408,3.92,137.62,137.6,4.81327659]
[1764014451610,0.7,137.61,137.6,4.81327659]
[1764014452127,0.7,137.61,137.57,16.308864]
[1764014452299,0.7,137.61,137.59,4.81327659]
[1764014452632,25.26097049,137.66,137.6,4.81327659]
[1764014452928,0.67,137.62,137.58,25.52945457]
[1764014453109,3.22,137.61,137.58,7.26820875]
[1764014453312,3.22,137.61,137.57,23.57768108]
[1764014453509,0.67,137.6,137.57,23.57768108]
[1764014453925,0.67,137.6,137.58,4.81327659]
[1764014454235,0.67,137.6,137.58,12.08144649]
[1764014454548,0.67,137.6,137.59,4.81327659]
[1764014455330,3.89,137.61,137.59,4.81327659]
[1764014455629,0.67,137.61,137.6,4.81327659]
[1764014455926,3.22,137.61,137.6,4.81327659]
[1764014456534,3.22,137.61,137.6,3.08053152]
[1764014457132,3.89,137.61,137.6,3.08053152]
[1764014459621,11.15692739,137.61,137.57,23.57740212]
[1764014459820,0.67,137.6,137.58,3.08053152]
[1764014460324,0.67,137.6,137.59,3.08053152]
[1764014461815,7.93749147,137.6,137.56,3.08053152]
[1764014462017,0.67,137.62,137.59,3.08053152]
[1764014462223,0.67,137.62,137.61,3.08053152]
[1764014462839,0.67,137.62,137.6,3.08053152]
[1764014463223,0.67,137.62,137.61,3.08053152]
[1764014464145,3.89,137.62,137.61,3.08053152]
[1764014465020,3.89,137.62,137.59,23.57683128]
[1764014465021,3.89,137.62,137.59,16.308864]
[1764014465327,3.89,137.62,137.61,3.08053152]
[1764014465723,0.67,137.64,137.61,3.08053152]
[1764014465933,3.22,137.63,137.62,3.08053152]
[1764014466536,3.89,137.63,137.62,3.08053152]
[1764014466739,3.89,137.63,137.6,7.26744186]
[1764014466740,0.67,137.63,137.6,7.26744186]
[1764014466948,3.89,137.62,137.6,10.34797338]
[1764014467127,3.89,137.62,137.6,3.08053152]
[1764014467323,3.22,137.62,137.61,3.08053152]
[1764014467745,3.22,137.62,137.59,7.26797005]
[1764014467933,0.67,137.61,137.6,3.08053152]
[1764014469061,0.67,137.61,137.6,10.34797338]
[1764014469963,0.67,137.61,137.56,16.308864]
[1764014470148,11.01753418,137.61,137.56,3.08053152]
[1764014470645,3.75053152,137.6,137.55,3.08053152]
[1764014471146,0.67,137.59,137.56,10.34990016]
[1764014471352,3.22,137.58,137.55,10.3503695]
[1764014471728,0.67,137.57,137.56,3.08053152]
[1764014473134,0.67,137.57,137.55,3.08053152]
[1764014474144,7.93905185,137.57,137.55,3.08053152]
[1764014474351,0.67,137.57,137.55,3.08053152]
[1764014474649,0.67,137.56,137.55,3.08053152]
[1764014475350,0.67,137.56,137.51,16.308864]
[1764014475537,7.93971166,137.56,137.53,3.08053152]
[1764014476053,0.67,137.55,137.52,3.08053152]
[1764014476260,3.22,137.54,137.52,3.08053152]
[1764014476433,3.22,137.54,137.52,10.35187582]
[1764014476633,3.89,137.54,137.53,3.08053152]
[1764014476847,3.22,137.54,137.53,3.08053152]
[1764014477728,3.89,137.54,137.53,3.08053152]
[1764014478137,11.16067792,137.54,137.52,3.08053152]
[1764014478449,0.67,137.53,137.51,7.2721763]
[1764014478655,3.89,137.54,137.5,18.18123311]
[1764014478827,3.22,137.55,137.5,18.16123311]
[1764014479025,3.22,137.55,137.49,7.27325623]
[1764014479223,0.67,137.54,137.49,7.27325623]
[1764014479652,0.67,137.54,137.52,3.08053152]
[1764014480029,7.94063654,137.54,137.52,3.08053152]
[1764014480248,0.67,137.54,137.53,3.08053152]
[1764014480445,10.49037349,137.55,137.53,3.08053152]
[1764014480933,0.67,137.54,137.53,3.08053152]
[1764014481250,3.89,137.54,137.53,3.08053152]
[1764014483750,7.26975972,137.56,137.53,10.35167236]
[1764014483751,0.67,137.56,137.53,10.35167236]
[1764014483958,0.67,137.56,137.55,3.08053152]
[1764014483959,3.89,137.56,137.55,3.08053152]
[1764014484157,3.22,137.56,137.55,3.08053152]
[1764014484651,3.89,137.56,137.55,3.08053152]
[1764014485276,3.22,137.56,137.55,3.08053152]
[1764014485553,3.89,137.56,137.55,3.08053152]
[1764014487659,3.89,137.56,137.54,7.27048054]
[1764014487857,3.89,137.56,137.55,3.08053152]
[1764014489754,3.22,137.56,137.55,10.35061512]
[1764014490449,3.89,137.56,137.55,10.35061512]
[1764014490962,3.22,137.56,137.55,10.35061512]
[1764014491262,0.67,137.58,137.55,10.35061512]
[1764014491464,0.67,137.58,137.57,3.08053152]
[1764014491648,3.89,137.58,137.57,3.08053152]
[1764014493168,37.55758922,137.61,137.57,3.08053152]
[1764014493169,0.67,137.6,137.57,3.08053152]
[1764014493467,3.22,137.59,137.58,3.08053152]
[1764014493975,3.89,137.59,137.58,3.08053152]
[1764014494261,3.89,137.59,137.57,3.08053152]
[1764014494469,0.67,137.58,137.56,3.08053152]
[1764014494771,0.67,137.58,137.52,0.14216157]
[1764014494954,20.05939552,137.58,137.49,0.09]
[1764014495151,24.2475261,137.58,137.54,3.08053152]
[1764014495455,0.67,137.57,137.54,3.08053152]
[1764014495757,0.67,137.58,137.56,3.08053152]
[1764014495962,0.67,137.58,137.57,3.08053152]
[1764014496265,0.67,137.58,137.56,3.08053152]
[1764014496638,3.22,137.57,137.56,3.08053152]
[1764014496837,3.22,137.57,137.54,7.2703947]
[1764014496838,3.22,137.57,137.55,3.08053152]
[1764014497038,0.67,137.56,137.53,25.44877013]
[1764014497260,3.89,137.56,137.55,10.35061512]
[1764014498775,3.89,137.56,137.54,7.27030066]
[1764014498950,3.89,137.56,137.54,10.35083218]
[1764014499266,3.89,137.56,137.55,3.08053152]
[1764014502072,3.22,137.56,137.55,3.08053152]
[1764014502454,3.22,137.57,137.55,15.4026576]
[1764014502654,3.22,137.57,137.56,3.08053152]
[1764014502873,3.22,137.57,137.56,10.35008662]
[1764014505769,0.67,137.61,137.56,28.52397437]
[1764014505971,3.22,137.58,137.56,25.53344285]
[1764014506178,3.22,137.58,137.56,25.44344285]
[1764014506392,0.67,137.62,137.57,0.09]
[1764014506669,3.22,137.6,137.57,0.09]
[1764014507073,3.22,137.61,137.59,3.08053152]
[1764014507249,3.22,137.61,137.6,10.34797338]
[1764014507448,3.89,137.61,137.6,10.34797338]
[1764014508147,3.22,137.61,137.6,10.34797338]
[1764014508578,3.89,137.61,137.6,10.34797338]
[1764014509150,3.89,137.61,137.59,7.26787607]
[1764014509362,0.67,137.6,137.59,10.34840759]
[1764014509764,7.26631464,137.63,137.59,10.34840759]
[1764014509983,3.89,137.62,137.61,3.08053152]
[1764014511656,3.89,137.62,137.6,10.34788436]
[1764014511856,0.67,137.61,137.6,10.34788436]
[1764014512769,3.94,137.65,137.6,22.76001044]
[1764014513056,3.22,137.65,137.64,3.08053152]
[1764014513261,3.22,137.65,137.62,3.08053152]
[1764014513482,0.72,137.64,137.62,10.34679244]
[1764014513687,0.72,137.64,137.58,8.89994492]
[1764014513688,0.72,137.64,137.61,3.08053152]
[1764014514381,0.72,137.64,137.62,3.08053152]
[1764014515758,0.72,137.64,137.63,3.08053152]
[1764014515979,0.72,137.64,137.62,3.08053152]
[1764014516474,0.72,137.64,137.63,3.08053152]
[1764014516784,3.94,137.64,137.63,3.08053152]
[1764014517169,0.72,137.64,137.63,3.08053152]
[1764014517372,3.22,137.64,137.63,3.08053152]
[1764014517572,3.94,137.64,137.63,10.34638925]
[1764014517989,3.22,137.64,137.63,10.34638925]
[1764014518293,3.94,137.64,137.63,10.34638925]
[1764014518658,3.94,137.64,137.63,12.07709854]
[1764014518880,3.94,137.64,137.63,4.81124081]
[1764014519184,3.94,137.64,137.61,4.81124081]
[1764014519385,0.72,137.63,137.61,4.81124081]
[1764014519770,0.72,137.63,137.6,12.07868267]
[1764014520069,0.72,137.63,137.61,4.81124081]
[1764014520657,7.26444757,137.66,137.62,4.81124081]
[1764014520856,7.26444757,137.66,137.6,7.26744186]
[1764014520857,0.72,137.64,137.6,7.26744186]
[1764014521196,0.72,137.64,137.57,16.308864]
[1764014521197,5.53124081,137.64,137.58,25.43855932]
[1764014521491,0.72,137.64,137.61,4.81124081]
[1764014521794,7.98625634,137.63,137.57,4.81124081]
[1764014521965,4.81124081,137.62,137.57,4.81124081]
[1764014522162,3.22,137.61,137.57,4.81124081]
[1764014522378,3.94,137.61,137.59,4.81124081]
[1764014522564,7.26625634,137.63,137.6,4.81124081]
[1764014522781,3.22,137.62,137.6,4.81124081]
[1764014522982,3.94,137.62,137.6,4.81124081]
[1764014523168,3.22,137.62,137.6,4.81124081]
[1764014523505,0.72,137.61,137.6,4.81124081]
[1764014523987,3.94,137.61,137.6,4.81124081]
[1764014524486,3.94,137.61,137.59,12.07899484]
[1764014524697,0.72,137.6,137.59,4.81124081]
[1764014524986,0.72,137.6,137.57,4.81124081]
[1764014525370,0.72,137.6,137.56,12.08079591]
[1764014525771,7.98744494,137.6,137.56,4.81124081]
[1764014525972,12.79868575,137.6,137.56,4.81124081]
[1764014526171,12.79868575,137.6,137.54,16.308864]
[1764014526172,0.72,137.59,137.55,4.81124081]
[1764014526396,4.81124081,137.58,137.54,4.81124081]
[1764014526601,3.22,137.57,137.53,12.08238165]
[1764014526764,12.79868575,137.59,137.56,4.81124081]
[1764014526765,12.07868575,137.59,137.56,4.81124081]
[1764014527094,0.72,137.59,137.58,4.81124081]
[1764014527296,3.94,137.59,137.58,4.81124081]
[1764014528383,3.94,137.59,137.58,12.07973913]
[1764014528581,4.81124081,137.64,137.58,12.16973913]
[1764014528898,3.22,137.63,137.6,4.81124081]
[1764014529080,3.94,137.63,137.6,4.81124081]
[1764014529393,0.72,137.62,137.6,4.81124081]
[1764014529788,3.22,137.62,137.61,12.07815455]
[1764014529979,3.94,137.62,137.61,12.07815455]
[1764014530381,3.94,137.62,137.57,25.44096306]
[1764014530686,0.72,137.61,137.6,4.81124081]
[1764014531190,3.94,137.62,137.6,4.81124081]
[1764014531395,3.94,137.62,137.61,4.81124081]
[1764014531979,3.94,137.62,137.61,12.07815455]
[1764014533007,3.22,137.62,137.61,12.07815455]
[1764014534195,3.94,137.62,137.61,12.07815455]
[1764014534391,3.94,137.62,137.59,12.07881627]
[1764014534596,0.72,137.61,137.59,12.07881627]
[1764014534986,0.72,137.61,137.6,4.81124081]
[1764014535882,3.22,137.61,137.6,4.81124081]
[1764014536087,3.22,137.61,137.6,12.07868267]
[1764014537591,3.94,137.61,137.6,12.07868267]
[1764014538190,3.22,137.61,137.6,12.07868267]
[1764014539584,3.94,137.61,137.6,12.07868267]
[1764014540099,3.94,137.61,137.59,4.81124081]
[1764014540304,0.72,137.6,137.58,7.26826412]
[1764014540501,0.72,137.6,137.59,4.81124081]
[1764014540886,3.22,137.61,137.59,4.81124081]
[1764014541106,3.22,137.61,137.6,4.81124081]
[1764014542109,3.22,137.61,137.6,12.07868267]
[1764014542537,3.94,137.61,137.6,12.07868267]
[1764014543203,3.22,137.61,137.6,12.07868267]
[1764014543909,3.89,137.61,137.6,12.07868267]
[1764014544482,0.67,137.61,137.6,12.07868267]
[1764014544711,3.89,137.61,137.6,12.07868267]
[1764014545030,3.22,137.61,137.6,12.07868267]
[1764014545584,3.22,137.62,137.6,12.07868267]
[1764014545785,0.67,137.66,137.61,4.90124081]
[1764014546003,7.26554989,137.66,137.65,4.81124081]
[1764014546203,3.22,137.66,137.65,4.81124081]
[1764014546406,3.22,137.66,137.62,4.81124081]
[1764014546701,3.22,137.66,137.65,4.81124081]
[1764014547088,34.46641496,137.69,137.65,4.90124081]
[1764014547089,0.67,137.69,137.65,4.90124081]
[1764014547317,3.22,137.69,137.68,4.81124081]
[1764014547498,3.22,137.69,137.66,4.81124081]
[1764014548015,0.67,137.68,137.66,4.81124081]
[1764014548615,0.67,137.68,137.67,4.81124081]
[1764014549030,3.89,137.68,137.67,4.81124081]
[1764014549489,3.89,137.68,137.66,4.81124081]
[1764014549685,0.67,137.67,137.66,4.81124081]
[1764014550106,0.67,137.67,137.65,7.26466402]
[1764014550285,0.67,137.67,137.66,4.81124081]
[1764014551102,0.67,137.67,137.63,16.308864]
[1764014551312,0.67,137.67,137.66,4.81124081]
[1764014551509,0.67,137.67,137.63,18.16464433]
[1764014551716,0.67,137.67,137.65,4.81124081]
[1764014552213,0.67,137.67,137.63,18.16464433]
[1764014552214,0.67,137.67,137.66,4.81124081]
[1764014553315,3.22,137.68,137.66,4.81124081]
[1764014553491,3.89,137.68,137.67,4.81124081]
[1764014553692,0.67,137.67,137.64,18.16332461]
[1764014553910,0.67,137.67,137.63,23.57472173]
[1764014554092,0.67,137.67,137.66,4.81124081]
[1764014554606,0.67,137.67,137.63,41.73936606]
[1764014554921,0.67,137.67,137.66,4.81124081]
[1764014555305,3.89,137.67,137.66,4.81124081]
[1764014555605,0.1,137.7,137.66,12.0755151]
[1764014555606,3.22,137.68,137.66,12.0755151]
[1764014555807,0.1,137.7,137.66,25.51496003]
[1764014556007,0.77,137.7,137.69,4.81124081]
[1764014556206,3.99,137.7,137.69,4.81124081]
[1764014558319,3.99,137.7,137.64,25.42797143]
[1764014558613,3.99,137.7,137.69,4.81124081]
[1764014559208,11.25216412,137.7,137.68,4.81124081]
[1764014559512,0.67,137.69,137.68,4.81124081]
[1764014560044,0.67,137.69,137.67,4.81124081]
[1764014560196,7.93282763,137.69,137.67,4.81124081]
[1764014560512,0.67,137.69,137.67,4.81124081]
[1764014560713,10.58227939,137.7,137.67,4.81124081]
[1764014560914,0.1,137.7,137.68,4.81124081]
[1764014561110,3.22,137.69,137.68,4.81124081]
[1764014561336,3.89,137.69,137.68,4.81124081]